[Event "Titled Tuesday Blitz April 11 Early 2023"]
[White "Zhigalko, Sergei"]
[Black "Firouzja, Alireza"]
[WhiteFideId "13502956"]
[BlackFideId "12573981"]
[WhiteElo "2626"]
[BlackElo "2904"]
[Result "1-0"]
[Round "05"]
[TimeControl "180+2"]
[Date "2023.04.11"]
[WhiteClock "0:01:25"]
[BlackClock "0:00:07"]

1. e4 {[%clk 0:03:00]}  e5 {[%clk 0:02:58]} 2. Nf3 {[%clk 0:03:01]}  Nc6 {[%clk 0:02:58]} 3. Bb5 {[%clk 0:03:00]}  a6 {[%clk 0:02:58]} 4. Ba4 {[%clk 0:03:01]}  Nf6 {[%clk 0:02:58]} 5. O-O {[%clk 0:03:01]}  Be7 {[%clk 0:02:58]} 6. Re1 {[%clk 0:03:01]}  b5 {[%clk 0:02:58]} 7. Bb3 {[%clk 0:03:02]}  O-O {[%clk 0:02:58]} 8. a4 {[%clk 0:03:02]}  b4 {[%clk 0:02:58]} 9. d3 {[%clk 0:03:02]}  Bc5 {[%clk 0:02:55]} 10. Bg5 {[%clk 0:02:51]}  h6 {[%clk 0:02:51]} 11. Bh4 {[%clk 0:02:50]}  g5 {[%clk 0:02:50]} 12. Bg3 {[%clk 0:02:50]}  d6 {[%clk 0:02:51]} 13. Nbd2 {[%clk 0:02:48]}  Bg4 {[%clk 0:02:38]} 14. c3 {[%clk 0:02:42]}  Nh5 {[%clk 0:02:31]} 15. Bd5 {[%clk 0:02:37]}  Qd7 {[%clk 0:01:02]} 16. Bxc6 {[%clk 0:02:37]}  Qxc6 {[%clk 0:01:01]} 17. Nxe5 {[%clk 0:02:37]}  dxe5 {[%clk 0:00:47]} 18. Qxg4 {[%clk 0:02:37]}  Nf4 {[%clk 0:00:39]} 19. d4 {[%clk 0:02:28]}  Be7 {[%clk 0:00:21]} 20. Nf3 {[%clk 0:02:17]}  bxc3 {[%clk 0:00:02]} 21. Nxe5 {[%clk 0:02:14]}  Qe6 {[%clk 0:00:02]} 22. bxc3 {[%clk 0:02:01]}  Bd6 {[%clk 0:00:01]} 23. Bxf4 {[%clk 0:02:00]}  Qxg4 {[%clk 0:00:01]} 24. Nxg4 {[%clk 0:02:01]}  Bxf4 {[%clk 0:00:02]} 25. Nxh6+ {[%clk 0:01:55]}  Kh7 {[%clk 0:00:02]} 26. Nf5 {[%clk 0:01:52]}  Bd2 {[%clk 0:00:03]} 27. Red1 {[%clk 0:01:49]}  Bxc3 {[%clk 0:00:03]} 28. Rac1 {[%clk 0:01:49]}  Ba5 {[%clk 0:00:04]} 29. Rc6 {[%clk 0:01:47]}  f6 {[%clk 0:00:04]} 30. h4 {[%clk 0:01:35]}  Bb6 {[%clk 0:00:04]} 31. hxg5 {[%clk 0:01:32]}  fxg5 {[%clk 0:00:05]} 32. Rd3 {[%clk 0:01:32]}  Kg8 {[%clk 0:00:06]} 33. Rg3 {[%clk 0:01:28]}  Kf7 {[%clk 0:00:06]} 34. Rxg5 {[%clk 0:01:28]}  Ke8 {[%clk 0:00:07]} 35. Rg7 {[%clk 0:01:25]} 1-0


[Site "https://www.chess.com"]

[Event "Titled Tuesday Blitz April 11 Early 2023"]
[White "Eljanov, Pavel"]
[Black "So, Wesley"]
[WhiteFideId "14102951"]
[BlackFideId "5202213"]
[WhiteElo "2598"]
[BlackElo "2749"]
[Result "1-0"]
[Round "05"]
[TimeControl "180+2"]
[Date "2023.04.11"]
[WhiteClock "0:00:11"]
[BlackClock "0:00:41"]

1. e4 {[%clk 0:03:00]}  c5 {[%clk 0:02:37]} 2. Nf3 {[%clk 0:03:00]}  d6 {[%clk 0:02:35]} 3. d4 {[%clk 0:03:01]}  cxd4 {[%clk 0:02:36]} 4. Nxd4 {[%clk 0:03:01]}  Nf6 {[%clk 0:02:37]} 5. Nc3 {[%clk 0:03:02]}  a6 {[%clk 0:02:37]} 6. Be2 {[%clk 0:03:02]}  e5 {[%clk 0:02:37]} 7. Nb3 {[%clk 0:03:03]}  Be7 {[%clk 0:02:37]} 8. Be3 {[%clk 0:03:03]}  Be6 {[%clk 0:02:37]} 9. Nd5 {[%clk 0:03:03]}  Bxd5 {[%clk 0:02:32]} 10. exd5 {[%clk 0:03:04]}  Nbd7 {[%clk 0:02:32]} 11. c4 {[%clk 0:03:00]}  a5 {[%clk 0:02:27]} 12. O-O {[%clk 0:02:59]}  O-O {[%clk 0:02:23]} 13. Rc1 {[%clk 0:02:54]}  Ne4 {[%clk 0:02:17]} 14. Bd3 {[%clk 0:02:44]}  Nec5 {[%clk 0:02:17]} 15. Nxc5 {[%clk 0:02:42]}  Nxc5 {[%clk 0:02:18]} 16. Bxc5 {[%clk 0:02:25]}  dxc5 {[%clk 0:02:19]} 17. Qh5 {[%clk 0:02:24]}  g6 {[%clk 0:02:19]} 18. Qxe5 {[%clk 0:02:24]}  Re8 {[%clk 0:02:18]} 19. Qg3 {[%clk 0:02:20]}  Bd6 {[%clk 0:02:16]} 20. Qf3 {[%clk 0:02:19]}  Qb6 {[%clk 0:02:08]} 21. Rc2 {[%clk 0:02:05]}  Re7 {[%clk 0:02:01]} 22. Re2 {[%clk 0:02:01]}  Rae8 {[%clk 0:01:59]} 23. Rfe1 {[%clk 0:01:58]}  Qb4 {[%clk 0:01:52]} 24. Rxe7 {[%clk 0:01:50]}  Rxe7 {[%clk 0:01:53]} 25. Rxe7 {[%clk 0:01:46]}  Bxe7 {[%clk 0:01:54]} 26. Qe2 {[%clk 0:01:47]}  Bf6 {[%clk 0:01:54]} 27. b3 {[%clk 0:01:34]}  Qc3 {[%clk 0:01:53]} 28. g3 {[%clk 0:01:33]}  Kg7 {[%clk 0:01:51]} 29. Kg2 {[%clk 0:01:32]}  b6 {[%clk 0:01:50]} 30. Be4 {[%clk 0:01:23]}  Be5 {[%clk 0:01:48]} 31. h4 {[%clk 0:01:20]}  h5 {[%clk 0:01:48]} 32. Bf3 {[%clk 0:01:18]}  Qd4 {[%clk 0:01:47]} 33. Qe4 {[%clk 0:01:10]}  Qb2 {[%clk 0:01:44]} 34. Qd3 {[%clk 0:01:08]}  Bd6 {[%clk 0:01:29]} 35. Qe2 {[%clk 0:01:05]}  Qd4 {[%clk 0:01:27]} 36. Qe8 {[%clk 0:01:04]}  Be5 {[%clk 0:01:22]} 37. Qe7 {[%clk 0:00:50]}  Bf6 {[%clk 0:01:22]} 38. Qe4 {[%clk 0:00:31]}  Qd2 {[%clk 0:01:20]} 39. Qe2 {[%clk 0:00:31]}  Qd4 {[%clk 0:01:20]} 40. Qe4 {[%clk 0:00:30]}  Qd2 {[%clk 0:01:20]} 41. Qe2 {[%clk 0:00:28]}  Qd4 {[%clk 0:01:20]} 42. Qe3 {[%clk 0:00:29]}  Qxe3 {[%clk 0:01:18]} 43. fxe3 {[%clk 0:00:29]}  Be5 {[%clk 0:01:19]} 44. g4 {[%clk 0:00:27]}  hxg4 {[%clk 0:01:19]} 45. Bxg4 {[%clk 0:00:28]}  Bd6 {[%clk 0:01:14]} 46. Kf3 {[%clk 0:00:27]}  f5 {[%clk 0:01:13]} 47. Bh3 {[%clk 0:00:26]}  Kh6 {[%clk 0:01:14]} 48. e4 {[%clk 0:00:20]}  fxe4+ {[%clk 0:01:15]} 49. Kxe4 {[%clk 0:00:20]}  Kh5 {[%clk 0:01:15]} 50. Kf3 {[%clk 0:00:19]}  Kxh4 {[%clk 0:01:15]} 51. Bd7 {[%clk 0:00:20]}  Kg5 {[%clk 0:01:15]} 52. Bc8 {[%clk 0:00:20]}  Kf6 {[%clk 0:01:15]} 53. Ke4 {[%clk 0:00:20]}  Kg5 {[%clk 0:01:15]} 54. Kf3 {[%clk 0:00:21]}  Kh4 {[%clk 0:01:15]} 55. Bd7 {[%clk 0:00:21]}  Be5 {[%clk 0:01:15]} 56. Ke4 {[%clk 0:00:20]}  Bg3 {[%clk 0:01:15]} 57. Kf3 {[%clk 0:00:20]}  Bd6 {[%clk 0:01:15]} 58. Be8 {[%clk 0:00:20]}  Kg5 {[%clk 0:01:14]} 59. Bd7 {[%clk 0:00:20]}  Kf6 {[%clk 0:01:15]} 60. Ke4 {[%clk 0:00:21]}  Bc7 {[%clk 0:01:15]} 61. Bc8 {[%clk 0:00:21]}  Ke7 {[%clk 0:01:14]} 62. Bg4 {[%clk 0:00:21]}  Bh2 {[%clk 0:01:14]} 63. Be6 {[%clk 0:00:20]}  Kf6 {[%clk 0:01:14]} 64. Bd7 {[%clk 0:00:21]}  Bc7 {[%clk 0:01:13]} 65. Be8 {[%clk 0:00:21]}  Kg5 {[%clk 0:01:11]} 66. Bf7 {[%clk 0:00:19]}  Kh5 {[%clk 0:01:11]} 67. Kf3 {[%clk 0:00:17]}  Kh6 {[%clk 0:01:09]} 68. Ke4 {[%clk 0:00:17]}  Bd6 {[%clk 0:01:09]} 69. Be8 {[%clk 0:00:17]}  Kg5 {[%clk 0:01:10]} 70. Bf7 {[%clk 0:00:17]}  Bb8 {[%clk 0:01:10]} 71. Be8 {[%clk 0:00:17]}  Kf6 {[%clk 0:01:09]} 72. Kf3 {[%clk 0:00:16]}  g5 {[%clk 0:01:08]} 73. Ke4 {[%clk 0:00:09]}  g4 {[%clk 0:01:08]} 74. Bd7 {[%clk 0:00:09]}  g3 {[%clk 0:01:08]} 75. Bh3 {[%clk 0:00:09]}  Bd6 {[%clk 0:01:08]} 76. Bg2 {[%clk 0:00:09]}  Kg5 {[%clk 0:01:08]} 77. Bh3 {[%clk 0:00:07]}  Kh4 {[%clk 0:01:08]} 78. Bg2 {[%clk 0:00:07]}  Kg4 {[%clk 0:01:08]} 79. Ke3 {[%clk 0:00:07]}  Bf4+ {[%clk 0:01:09]} 80. Ke4 {[%clk 0:00:08]}  Bb8 {[%clk 0:01:09]} 81. Ke3 {[%clk 0:00:08]}  Be5 {[%clk 0:01:09]} 82. Ke4 {[%clk 0:00:08]}  Bf4 {[%clk 0:01:07]} 83. Bf3+ {[%clk 0:00:07]}  Kg5 {[%clk 0:01:07]} 84. Bg2 {[%clk 0:00:07]}  Bc7 {[%clk 0:01:07]} 85. Bf3 {[%clk 0:00:07]}  Kh4 {[%clk 0:01:07]} 86. Kf5 {[%clk 0:00:07]}  Kh3 {[%clk 0:00:50]} 87. Ke6 {[%clk 0:00:07]}  g2 {[%clk 0:00:48]} 88. Bxg2+ {[%clk 0:00:08]}  Kxg2 {[%clk 0:00:49]} 89. d6 {[%clk 0:00:08]}  Bd8 {[%clk 0:00:49]} 90. Kd7 {[%clk 0:00:09]}  Bh4 {[%clk 0:00:49]} 91. Kc6 {[%clk 0:00:09]}  Kf3 {[%clk 0:00:45]} 92. Kxb6 {[%clk 0:00:09]}  Ke3 {[%clk 0:00:45]} 93. Kxc5 {[%clk 0:00:10]}  Kd3 {[%clk 0:00:44]} 94. Kd5 {[%clk 0:00:10]}  Kc3 {[%clk 0:00:41]} 95. c5 {[%clk 0:00:11]}  Kb2 {[%clk 0:00:41]} 96. c6 {[%clk 0:00:11]}  Kxa2 {[%clk 0:00:41]} 97. Kc4 {[%clk 0:00:11]} 1-0


[Site "https://www.chess.com"]

[Event "Titled Tuesday Blitz April 11 Early 2023"]
[White "Svane, Rasmus"]
[Black "Salinas Herrera, Pablo"]
[WhiteFideId "4657101"]
[BlackFideId "3407128"]
[WhiteElo "2597"]
[BlackElo "2546"]
[Result "1/2-1/2"]
[Round "05"]
[TimeControl "180+2"]
[Date "2023.04.11"]
[WhiteClock "0:00:06"]
[BlackClock "0:00:07"]

1. Nf3 {[%clk 0:03:00]}  d5 {[%clk 0:02:57]} 2. g3 {[%clk 0:03:01]}  Nf6 {[%clk 0:02:57]} 3. Bg2 {[%clk 0:03:01]}  Bg4 {[%clk 0:02:58]} 4. O-O {[%clk 0:03:01]}  e6 {[%clk 0:02:58]} 5. h3 {[%clk 0:03:01]}  Bh5 {[%clk 0:02:58]} 6. d4 {[%clk 0:03:00]}  Nbd7 {[%clk 0:02:57]} 7. c4 {[%clk 0:03:01]}  c6 {[%clk 0:02:57]} 8. cxd5 {[%clk 0:03:01]}  exd5 {[%clk 0:02:58]} 9. Ne5 {[%clk 0:03:02]}  Be7 {[%clk 0:02:47]} 10. Nc3 {[%clk 0:02:59]}  O-O {[%clk 0:02:47]} 11. f4 {[%clk 0:02:58]}  h6 {[%clk 0:02:23]} 12. f5 {[%clk 0:01:55]}  Bd6 {[%clk 0:02:18]} 13. Bf4 {[%clk 0:01:48]}  Re8 {[%clk 0:02:13]} 14. g4 {[%clk 0:01:38]}  Nxe5 {[%clk 0:02:11]} 15. dxe5 {[%clk 0:01:37]}  Bxe5 {[%clk 0:02:12]} 16. Bxe5 {[%clk 0:01:35]}  Rxe5 {[%clk 0:02:11]} 17. e4 {[%clk 0:01:23]}  Qb6+ {[%clk 0:02:08]} 18. Rf2 {[%clk 0:01:23]}  dxe4 {[%clk 0:02:04]} 19. Qe2 {[%clk 0:00:45]}  Rd8 {[%clk 0:01:54]} 20. Rd1 {[%clk 0:00:45]}  Rxd1+ {[%clk 0:01:43]} 21. Nxd1 {[%clk 0:00:46]}  Nd5 {[%clk 0:01:23]} 22. gxh5 {[%clk 0:00:42]}  Nf4 {[%clk 0:01:19]} 23. Qe3 {[%clk 0:00:41]}  Rxf5 {[%clk 0:01:01]} 24. Qxb6 {[%clk 0:00:39]}  axb6 {[%clk 0:01:02]} 25. Kh2 {[%clk 0:00:32]}  Rf6 {[%clk 0:00:57]} 26. Bxe4 {[%clk 0:00:30]}  Nxh5 {[%clk 0:00:57]} 27. Rxf6 {[%clk 0:00:28]}  Nxf6 {[%clk 0:00:58]} 28. Bf5 {[%clk 0:00:29]}  b5 {[%clk 0:00:56]} 29. Bc8 {[%clk 0:00:28]}  b6 {[%clk 0:00:56]} 30. Bb7 {[%clk 0:00:25]}  c5 {[%clk 0:00:56]} 31. Nc3 {[%clk 0:00:26]}  b4 {[%clk 0:00:51]} 32. Na4 {[%clk 0:00:26]}  Nd7 {[%clk 0:00:51]} 33. Bc6 {[%clk 0:00:26]}  Ne5 {[%clk 0:00:52]} 34. Bb5 {[%clk 0:00:25]}  Nf3+ {[%clk 0:00:50]} 35. Kg3 {[%clk 0:00:23]}  Nd4 {[%clk 0:00:51]} 36. Bf1 {[%clk 0:00:14]}  Kf8 {[%clk 0:00:24]} 37. Nxb6 {[%clk 0:00:14]}  Ke7 {[%clk 0:00:25]} 38. Kf4 {[%clk 0:00:14]}  Kd6 {[%clk 0:00:23]} 39. Nc4+ {[%clk 0:00:14]}  Ke6 {[%clk 0:00:22]} 40. a4 {[%clk 0:00:13]}  bxa3 {[%clk 0:00:21]} 41. bxa3 {[%clk 0:00:13]}  g5+ {[%clk 0:00:20]} 42. Ke3 {[%clk 0:00:14]}  f5 {[%clk 0:00:18]} 43. a4 {[%clk 0:00:13]}  Kd5 {[%clk 0:00:18]} 44. Kd3 {[%clk 0:00:12]}  f4 {[%clk 0:00:14]} 45. a5 {[%clk 0:00:12]}  h5 {[%clk 0:00:13]} 46. a6 {[%clk 0:00:11]}  Kc6 {[%clk 0:00:14]} 47. Ke4 {[%clk 0:00:06]}  f3 {[%clk 0:00:12]} 48. Nd2 {[%clk 0:00:05]}  g4 {[%clk 0:00:12]} 49. Kf4 {[%clk 0:00:04]}  Kb6 {[%clk 0:00:11]} 50. hxg4 {[%clk 0:00:04]}  hxg4 {[%clk 0:00:12]} 51. Kxg4 {[%clk 0:00:04]}  Nc6 {[%clk 0:00:11]} 52. Kxf3 {[%clk 0:00:03]}  Nb4 {[%clk 0:00:12]} 53. Nc4+ {[%clk 0:00:02]}  Kxa6 {[%clk 0:00:12]} 54. Ke4 {[%clk 0:00:02]}  Kb5 {[%clk 0:00:12]} 55. Be2 {[%clk 0:00:02]}  Kc6 {[%clk 0:00:12]} 56. Ne5+ {[%clk 0:00:02]}  Kd6 {[%clk 0:00:13]} 57. Nc4+ {[%clk 0:00:02]}  Kc6 {[%clk 0:00:13]} 58. Ne3 {[%clk 0:00:03]}  Kd6 {[%clk 0:00:14]} 59. Bc4 {[%clk 0:00:02]}  Kc6 {[%clk 0:00:15]} 60. Bb3 {[%clk 0:00:03]}  Kd6 {[%clk 0:00:15]} 61. Nc4+ {[%clk 0:00:03]}  Ke6 {[%clk 0:00:14]} 62. Nb2+ {[%clk 0:00:03]}  Kd6 {[%clk 0:00:15]} 63. Na4 {[%clk 0:00:04]}  Nc6 {[%clk 0:00:14]} 64. Nc3 {[%clk 0:00:04]}  Nd4 {[%clk 0:00:13]} 65. Bc4 {[%clk 0:00:04]}  Kc6 {[%clk 0:00:13]} 66. Ke5 {[%clk 0:00:04]}  Nf3+ {[%clk 0:00:12]} 67. Kf6 {[%clk 0:00:04]}  Nd2 {[%clk 0:00:12]} 68. Bd5+ {[%clk 0:00:05]}  Kb6 {[%clk 0:00:12]} 69. Ke5 {[%clk 0:00:04]}  Ka5 {[%clk 0:00:11]} 70. Kf4 {[%clk 0:00:03]}  Kb4 {[%clk 0:00:11]} 71. Ne2 {[%clk 0:00:04]}  c4 {[%clk 0:00:11]} 72. Ke3 {[%clk 0:00:04]}  Nb3 {[%clk 0:00:11]} 73. Nf4 {[%clk 0:00:04]}  Kc5 {[%clk 0:00:12]} 74. Bf3 {[%clk 0:00:04]}  Nd4 {[%clk 0:00:10]} 75. Bg2 {[%clk 0:00:04]}  Nc2+ {[%clk 0:00:10]} 76. Kd2 {[%clk 0:00:04]}  Nd4 {[%clk 0:00:09]} 77. Kc3 {[%clk 0:00:05]}  Nb5+ {[%clk 0:00:10]} 78. Kb2 {[%clk 0:00:05]}  Kd4 {[%clk 0:00:10]} 79. Ne6+ {[%clk 0:00:05]}  Ke5 {[%clk 0:00:09]} 80. Nc5 {[%clk 0:00:05]}  Kd4 {[%clk 0:00:09]} 81. Ne6+ {[%clk 0:00:06]}  Ke5 {[%clk 0:00:10]} 82. Ng5 {[%clk 0:00:06]}  Kf4 {[%clk 0:00:10]} 83. Nf7 {[%clk 0:00:06]}  Ke3 {[%clk 0:00:10]} 84. Bc6 {[%clk 0:00:06]}  Nd4 {[%clk 0:00:10]} 85. Bd5 {[%clk 0:00:06]}  c3+ {[%clk 0:00:08]} 86. Kxc3 {[%clk 0:00:06]}  Nf5 {[%clk 0:00:08]} 87. Be6 {[%clk 0:00:06]}  Ng3 {[%clk 0:00:06]} 88. Nd6 {[%clk 0:00:06]}  Ne4+ {[%clk 0:00:06]} 89. Nxe4 {[%clk 0:00:06]}  Kxe4 {[%clk 0:00:07]} 1/2-1/2


[Site "https://www.chess.com"]

[Event "Titled Tuesday Blitz April 11 Early 2023"]
[White "Annaberdiyev, Meylis"]
[Black "Anton Guijarro, David"]
[WhiteFideId "14000563"]
[BlackFideId "2285525"]
[WhiteElo "2416"]
[BlackElo "2618"]
[Result "0-1"]
[Round "05"]
[TimeControl "180+2"]
[Date "2023.04.11"]
[WhiteClock "0:00:03"]
[BlackClock "0:00:19"]

1. e4 {[%clk 0:03:00]}  e5 {[%clk 0:02:59]} 2. Nf3 {[%clk 0:03:01]}  Nc6 {[%clk 0:03:00]} 3. Bc4 {[%clk 0:03:00]}  Nf6 {[%clk 0:02:58]} 4. d3 {[%clk 0:03:00]}  Be7 {[%clk 0:02:58]} 5. Nc3 {[%clk 0:02:55]}  O-O {[%clk 0:02:55]} 6. O-O {[%clk 0:02:54]}  d6 {[%clk 0:02:54]} 7. a4 {[%clk 0:02:53]}  Be6 {[%clk 0:02:53]} 8. Re1 {[%clk 0:02:41]}  a5 {[%clk 0:02:50]} 9. Bd2 {[%clk 0:02:28]}  Qd7 {[%clk 0:02:47]} 10. Nd5 {[%clk 0:02:26]}  Bd8 {[%clk 0:02:38]} 11. c3 {[%clk 0:01:16]}  Bxd5 {[%clk 0:02:29]} 12. exd5 {[%clk 0:01:15]}  Ne7 {[%clk 0:02:29]} 13. Qb3 {[%clk 0:01:15]}  c6 {[%clk 0:02:26]} 14. dxc6 {[%clk 0:01:07]}  bxc6 {[%clk 0:02:27]} 15. Qc2 {[%clk 0:00:57]}  Ng6 {[%clk 0:02:25]} 16. b4 {[%clk 0:00:44]}  d5 {[%clk 0:02:21]} 17. Bb3 {[%clk 0:00:44]}  Re8 {[%clk 0:02:13]} 18. b5 {[%clk 0:00:41]}  h6 {[%clk 0:02:09]} 19. c4 {[%clk 0:00:35]}  Rc8 {[%clk 0:01:21]} 20. c5 {[%clk 0:00:33]}  e4 {[%clk 0:01:08]} 21. Nd4 {[%clk 0:00:30]}  cxb5 {[%clk 0:01:07]} 22. c6 {[%clk 0:00:23]}  Qd6 {[%clk 0:00:57]} 23. axb5 {[%clk 0:00:22]}  Ng4 {[%clk 0:00:57]} 24. g3 {[%clk 0:00:20]}  Bb6 {[%clk 0:00:58]} 25. Bc3 {[%clk 0:00:18]}  Nh4 {[%clk 0:00:58]} 26. Qd1 {[%clk 0:00:13]}  Bxd4 {[%clk 0:00:57]} 27. Bxd4 {[%clk 0:00:11]}  Nf3+ {[%clk 0:00:57]} 28. Kg2 {[%clk 0:00:11]}  Nxd4 {[%clk 0:00:57]} 29. Qxg4 {[%clk 0:00:11]}  Nxb3 {[%clk 0:00:57]} 30. Rad1 {[%clk 0:00:10]}  Qc5 {[%clk 0:00:45]} 31. dxe4 {[%clk 0:00:09]}  d4 {[%clk 0:00:45]} 32. Qf5 {[%clk 0:00:06]}  Qxf5 {[%clk 0:00:45]} 33. exf5 {[%clk 0:00:07]}  Rxe1 {[%clk 0:00:45]} 34. Rxe1 {[%clk 0:00:08]}  a4 {[%clk 0:00:45]} 35. b6 {[%clk 0:00:06]}  Nc5 {[%clk 0:00:27]} 36. c7 {[%clk 0:00:06]}  Kf8 {[%clk 0:00:24]} 37. Rc1 {[%clk 0:00:04]}  Nb7 {[%clk 0:00:23]} 38. Rc4 {[%clk 0:00:04]}  a3 {[%clk 0:00:21]} 39. Rxd4 {[%clk 0:00:02]}  Ke7 {[%clk 0:00:21]} 40. Ra4 {[%clk 0:00:02]}  Kd7 {[%clk 0:00:20]} 41. Rxa3 {[%clk 0:00:03]}  Kc6 {[%clk 0:00:21]} 42. Rb3 {[%clk 0:00:03]}  Nc5 {[%clk 0:00:21]} 43. Rb1 {[%clk 0:00:02]}  Kb7 {[%clk 0:00:20]} 44. f6 {[%clk 0:00:03]}  gxf6 {[%clk 0:00:21]} 45. Kf3 {[%clk 0:00:02]}  Nd7 {[%clk 0:00:19]} 46. Rb5 {[%clk 0:00:02]}  Nxb6 {[%clk 0:00:19]} 47. Rh5 {[%clk 0:00:03]}  Rh8 {[%clk 0:00:19]} 48. Rf5 {[%clk 0:00:03]}  Nd7 {[%clk 0:00:19]} 49. Rd5 {[%clk 0:00:03]}  Kxc7 {[%clk 0:00:19]} 50. h4 {[%clk 0:00:03]}  Kc6 {[%clk 0:00:19]} 51. Rd1 {[%clk 0:00:03]}  h5 {[%clk 0:00:19]} 52. Kf4 {[%clk 0:00:03]}  Re8 {[%clk 0:00:20]} 53. Rd2 {[%clk 0:00:02]}  Re5 {[%clk 0:00:20]} 54. f3 {[%clk 0:00:02]}  Rd5 {[%clk 0:00:20]} 55. Re2 {[%clk 0:00:02]}  Kd6 {[%clk 0:00:20]} 56. Rc2 {[%clk 0:00:03]}  Rd4+ {[%clk 0:00:20]} 57. Ke3 {[%clk 0:00:03]}  Ra4 {[%clk 0:00:21]} 58. Rd2+ {[%clk 0:00:03]}  Ke6 {[%clk 0:00:21]} 59. Rc2 {[%clk 0:00:04]}  Ne5 {[%clk 0:00:20]} 60. Rc3 {[%clk 0:00:03]}  Kf5 {[%clk 0:00:19]} 0-1


[Site "https://www.chess.com"]

[Event "Titled Tuesday Blitz April 11 Early 2023"]
[White "Levitskiy, Andrey"]
[Black "Xiong, Jeffery"]
[WhiteFideId "14132885"]
[BlackFideId "2047640"]
[WhiteElo "2341"]
[BlackElo "2726"]
[Result "0-1"]
[Round "05"]
[TimeControl "180+2"]
[Date "2023.04.11"]
[WhiteClock "0:00:01"]
[BlackClock "0:00:46"]

1. e4 {[%clk 0:03:00]}  e6 {[%clk 0:03:00]} 2. d3 {[%clk 0:02:36]}  c5 {[%clk 0:03:00]} 3. Nf3 {[%clk 0:02:36]}  Nc6 {[%clk 0:03:00]} 4. g3 {[%clk 0:02:35]}  g6 {[%clk 0:03:01]} 5. Bg2 {[%clk 0:02:36]}  Bg7 {[%clk 0:03:01]} 6. O-O {[%clk 0:02:37]}  Nge7 {[%clk 0:03:01]} 7. Re1 {[%clk 0:02:37]}  O-O {[%clk 0:03:02]} 8. Nbd2 {[%clk 0:02:31]}  d6 {[%clk 0:02:58]} 9. a3 {[%clk 0:02:23]}  b5 {[%clk 0:02:56]} 10. h4 {[%clk 0:02:12]}  h6 {[%clk 0:02:44]} 11. Nf1 {[%clk 0:02:10]}  a5 {[%clk 0:02:44]} 12. c3 {[%clk 0:02:04]}  Rb8 {[%clk 0:02:44]} 13. Bd2 {[%clk 0:02:04]}  b4 {[%clk 0:02:44]} 14. axb4 {[%clk 0:02:05]}  axb4 {[%clk 0:02:45]} 15. Ne3 {[%clk 0:02:00]}  Kh7 {[%clk 0:02:45]} 16. h5 {[%clk 0:01:56]}  g5 {[%clk 0:02:45]} 17. Ng4 {[%clk 0:01:40]}  f5 {[%clk 0:02:25]} 18. exf5 {[%clk 0:01:34]}  exf5 {[%clk 0:02:26]} 19. Nxg5+ {[%clk 0:01:23]}  hxg5 {[%clk 0:02:24]} 20. Bxg5 {[%clk 0:01:24]}  Qd7 {[%clk 0:01:52]} 21. h6 {[%clk 0:00:58]}  Bh8 {[%clk 0:01:52]} 22. Qa4 {[%clk 0:00:56]}  Qc7 {[%clk 0:01:32]} 23. Bxe7 {[%clk 0:00:35]}  Nxe7 {[%clk 0:01:33]} 24. Qa7 {[%clk 0:00:36]}  Bb7 {[%clk 0:01:27]} 25. Ne3 {[%clk 0:00:30]}  bxc3 {[%clk 0:01:26]} 26. bxc3 {[%clk 0:00:05]}  Bxc3 {[%clk 0:01:27]} 27. Nc4 {[%clk 0:00:04]}  Bxa1 {[%clk 0:01:20]} 28. Qxa1 {[%clk 0:00:02]}  Ng6 {[%clk 0:01:20]} 29. Re6 {[%clk 0:00:02]}  d5 {[%clk 0:00:49]} 30. Ne3 {[%clk 0:00:01]}  d4 {[%clk 0:00:49]} 31. Nd5 {[%clk 0:00:01]}  Qd7 {[%clk 0:00:46]} 0-1


[Site "https://www.chess.com"]